Cogmind - Beta 15 @@@ ROGUE MODE // 2025.06.01 @ 04:30:46 Player: CL-1C0 Result: Destroyed by Y-64 Sentinel with Wave Gun Performance ------------- Evolutions (5) 2500 Regions Visited (12) 2400 Robots Destroyed (117) 585 Value Destroyed (3933) 3933 Prototype IDs (20) 400 Alien Tech Used (0) 0 Bonus (1218) 1218 TOTAL SCORE: 11036 Bonus ------- High Alert Combat Kills 27 Follower Combat Kills 91 Registered with UFD 300 Met Optimus in HQ 500 Met Data Miner 300 Cogmind --------- Core Integrity 0/1000 Matter 193/300 Energy 100/100 System Corruption 4% Temperature Cool (9) Movement Core (50) Location -5/Factory Parts ------- > --- POWER (1) -------- (None) > --- PROPULSION (4) --- (None) > --- UTILITY (8) ------ Enhanced Optical Array Hacking Suite System Shield Authchip [Armor] > --- WEAPON (4) ------- (None) > --- INVENTORY (5) ---- Advanced Heat Sink Graphene Brace System Restoration Module Improved Plasma Cutter CPS Tube (2) Peak State ------------ > --- POWER ------------ Reinforced Deuterium Engine > --- PROPULSION ------- Overtuned Huge Scrapsphere Overtuned Huge Scrapsphere > --- UTILITY ---------- Scrap Suit Advanced Heat Sink High-capacity Storage Unit Enhanced Optical Array Improved Sensor Array Improved Signal Interpreter Advanced Targeting Computer > --- WEAPON ----------- Gauss Rifle Guided EMP Blaster Axe > --- INVENTORY -------- Light Deuterium Engine Advanced Heat Sink Weapon Mount Weapon Cycler Phase Shifter Cloaking Device Graphene Brace Hacking Suite Hacking Suite System Shield Authchip [R/Combat] Authchip [R/Combat] Authchip [Armor] System Restoration Module Variable Charge Gun Remote Datajack CPS Tube [Rating: 82] Favorites ----------- Power Cooled Ion Engine Engine Cooled Ion Engine Propulsion Light Treads Treads Light Treads Leg Aluminum Leg Wheel Overtuned Huge Scrapsphere Hover Unit Aerolev Unit Flight Unit Improved VTOL Module Utility Improved Signal Interpreter Device Scrap Suit Storage Large Storage Unit Processor Improved Signal Interpreter Hackware Hacking Suite Protection Light Armor Plating Weapon Advanced Beam Cannon Energy Gun Overtuned Quantum Rifle Energy Cannon Advanced Beam Cannon Ballistic Gun Gauss Rifle Launcher Guided EMP Blaster Special Weapon CPS Tube Impact Weapon Maul Slashing Weapon Axe Build | -11 -10 -9 -8 -8 -8 -8 -6 -6 -6 -6 -5 -5 ------- Run | Yrd Mat Mat Mat Sto Rec Scr Fac Low Low Dat Pro Fac Slots Evolved 10 | . . 2 2 . . . 4 . . . . 2 Power . | . . . . . . . . . . . . . Propulsion 2 | . . 1 1 . . . . . . . . . Utility 6 | . . 1 1 . . . 2 . . . . 2 Weapon 2 | . . . . . . . 2 . . . . . Parts Attached 79 | . 2 23 4 7 1 7 20 2 1 2 . 10 Power 8 | . . 5 . 1 . . 2 . . . . . Engine 8 | . . 5 . 1 . . 2 . . . . . Core . | . . . . . . . . . . . . . Reactor . | . . . . . . . . . . . . . Propulsion 19 | . 1 7 1 4 1 2 2 . . . . 1 Treads 9 | . . 5 1 . 1 . 2 . . . . . Leg 3 | . 1 . . 2 . . . . . . . . Wheel 2 | . . . . . . 2 . . . . . . Hover 1 | . . 1 . . . . . . . . . . Flight 4 | . . 1 . 2 . . . . . . . 1 Utility 31 | . 1 5 3 2 . 4 7 1 . . . 8 Device 6 | . . . 1 1 . 1 3 . . . . . Storage 4 | . . 2 . . . 2 . . . . . . Processor 7 | . . 1 1 1 . 1 1 . . . . 2 Hackware 9 | . . . . . . . 3 . . . . 6 Protection 5 | . 1 2 1 . . . . 1 . . . . Artifact . | . . . . . . . . . . . . . Weapon 21 | . . 6 . . . 1 9 1 1 2 . 1 Energy Gun 4 | . . 2 . . . 1 . . . . . 1 Energy Cannon 1 | . . 1 . . . . . . . . . . Ballistic Gun 8 | . . 1 . . . . 6 1 . . . . Ballistic Cannon . | . . . . . . . . . . . . . Launcher 3 | . . 1 . . . . 2 . . . . . Special Weapon 3 | . . . . . . . 1 . . 2 . . Impact Weapon 1 | . . 1 . . . . . . . . . . Slashing Weapon 1 | . . . . . . . . . 1 . . . Piercing Weapon . | . . . . . . . . . . . . . Special Melee Weapon . | . . . . . . . . . . . . . Unidentified Prototypes 8 | . . 6 . 1 . . 1 . . . . . Parts Lost 28 | . . 2 . 2 . . 6 1 1 . 2 14 Power 1 | . . . . . . . . . . . . 1 Propulsion 5 | . . . . 1 . . 1 . . . . 3 Utility 8 | . . 1 . 1 . . . . . . . 6 Weapon 14 | . . 1 . . . . 5 1 1 . 2 4 Highest Loss Streak 10 | . . 1 . 1 . . 2 1 1 . 1 10 To Critical Strikes . | . . . . . . . . . . . . . Average Backups 15 | 6 6 9 14 14 15 15 17 17 17 18 18 15 Power . | 1 1 . . . 1 . . . . . . . Propulsion 3 | 4 4 3 5 5 6 4 1 1 2 2 2 . Utility 8 | . . 3 7 6 6 6 12 12 13 13 13 11 Weapon 1 | 1 1 1 2 2 2 2 2 1 1 1 1 . Tool/Special . | . . . . . . . . . . . . . Unused Backups 38 | . 5 11 2 1 . 7 4 . . . . 8 Power 4 | . 1 1 . 1 . . . . . . . 1 Propulsion 12 | . 1 5 . . . 6 . . . . . . Utility 11 | . 1 1 . . . . 3 . . . . 6 Weapon 10 | . 2 4 2 . . 1 1 . . . . . Tool/Special 1 | . . . . . . . . . . . . 1 Average Slot Usage (%) 87 | . 95 96 89 94 100 91 84 79 76 63 71 68 Engine 8 | . 14 11 9 9 9 9 6 6 6 6 6 4 Treads 16 | . . 29 36 27 27 19 12 2 . . . . Wheel 5 | . . . . . . 4 6 11 13 13 13 10 Flight 3 | . . 2 . 1 9 6 . . . . . . Device 13 | . . . 2 14 18 15 14 19 20 20 20 12 Storage 8 | . 14 11 9 9 9 9 6 6 6 6 6 4 Processor 7 | . . 6 6 5 9 8 9 6 6 6 6 12 Protection 2 | . 9 13 8 3 . . . . . . . . Energy Gun 2 | . 14 5 . . . 2 2 . . . . . Energy Cannon 4 | . . 7 9 9 9 6 . . . . . . Ballistic Gun 5 | . 14 2 . . . . 15 23 20 1 6 2 Impact Weapon 5 | . . 6 9 9 9 9 4 . . . . . Peak Build Rating 82 | 6 7 20 28 32 32 58 71 71 71 66 74 82 Average Rating 44 | 6 6 16 26 29 31 38 64 67 68 60 69 71 On Entrance 40 | 6 6 7 18 28 31 32 58 68 69 69 66 70 Naked Turns . | . . . . . . . . . . . . . Heaviest Build 81 | 11 12 38 52 52 38 81 81 79 78 68 78 78 Greatest Support 80 | 20 20 60 80 80 63 63 40 40 40 40 40 40 Greatest Overweight (x) 4 | . . . . . . 2 4 3 1 1 1 2 Average Overweight (x) . | . . . . . . . 3 1 1 1 1 . Largest Inventory Capacity 20 | 8 8 15 15 15 15 20 20 20 20 20 20 20 Average Capacity 16 | 8 8 10 15 15 15 15 20 20 20 20 20 18 Most Carried 20 | 6 7 15 15 15 15 20 20 19 19 20 20 18 Average Carried 15 | 6 6 9 14 14 15 15 19 18 18 19 18 15 Final Capacity 20 | 8 8 15 15 15 15 20 20 20 20 20 20 5 Final Carried 20 | 6 7 15 15 15 15 20 19 19 19 20 18 5 Class Distribution -------------------- 49% | Mutant 24% | Scrapper 20% | Scavenger-Scrapper 3% | Scavenger-Mutant Dominant Class ---------------- Mutant | -10/Materials Mutant | -9/Materials Mutant | -8/Materials Mutant | -8/Storage Mutant | -8/Recycling Mutant | -8/Scraptown Scrapper | -6/Factory Scavenger-Scrapper | -6/Lower Caves Scavenger-Scrapper | -6/Lower Caves Scrapper | -6/Data Miner Scrapper | -5/Proximity Caves Scavenger-Scrapper | -5/Factory Resources | -11 -10 -9 -8 -8 -8 -8 -6 -6 -6 -6 -5 -5 ----------- Run | Yrd Mat Mat Mat Sto Rec Scr Fac Low Low Dat Pro Fac Matter Collected 2504 | 200 56 465 30 45 50 60 984 133 189 . 178 114 Remotely . | . . . . . . . . . . . . . Salvage Created 5332 | . 150 1055 148 472 365 . 2029 163 193 . 361 396 Parts 250 | . 10 63 5 14 2 . 111 6 11 . 10 18 Haulers Intercepted 6 | . . 5 . . . . 1 . . . . . Recyclers Shooed 7 | . . 1 . 1 . . 5 . . . . . Parts Field Recycled . | . . . . . . . . . . . . . Retrieved Matter . | . . . . . . . . . . . . . Parts Self-Destructed 21 | . . . . . . . . 10 7 . 4 . Prevented 8 | . . . . . . . . . . . 8 . Kills | -11 -10 -9 -8 -8 -8 -8 -6 -6 -6 -6 -5 -5 ------- Run | Yrd Mat Mat Mat Sto Rec Scr Fac Low Low Dat Pro Fac Combat Hostiles Destroyed 78 | . 4 19 3 5 1 . 29 3 2 . 5 7 Guns 34 | . 4 2 . . . . 21 3 2 . 1 1 Cannons 14 | . . 7 2 5 . . . . . . . . AOE 27 | . . 9 . . . . 8 . . . 4 6 Classes Destroyed 18 | . 1 8 . 1 . . 6 . 2 . . . Worker 9 | . . 1 . 1 . . 7 . . . . . Builder 7 | . . 1 . . . . 6 . . . . . Tunneler 1 | . . 1 . . . . . . . . . . Hauler 6 | . . 5 . . . . 1 . . . . . Recycler 9 | . . 1 . 2 4 . 2 . . . . . Mechanic 1 | . . . . . . . 1 . . . . . Operator 3 | . . . . 1 . . 1 . . . . 1 Watcher 1 | . . . . . . . 1 . . . . . Swarmer 12 | . . 3 . . . . 4 1 . . 1 3 Grunt 37 | . 4 10 1 4 . . 12 1 . . 3 2 Brawler 5 | . . 1 . 1 . . 1 . . . 1 1 Duelist 2 | . . . . . . . . . 1 . 1 . Sentry 12 | . . 5 2 . 1 . 3 1 . . . . Specialist 1 | . . . . . . . 1 . . . . . Hunter 6 | . . . . . . . 4 . 1 . . 1 Programmer 3 | . . . . . . . 3 . . . . . Heavy 1 | . . . . . . . 1 . . . . . Mutant 1 | . . . . . . . . . 1 . . . Best Kill Streak 9 | . 4 4 1 4 1 . 9 3 1 . 5 3 Combat Bots Only 5 | . 4 4 1 3 1 . 4 3 1 . 5 3 Max Kills in Single Turn 4 | . 1 2 1 1 1 . 4 1 1 . 2 1 Gunslinging . | . . . . . . . . . . . . . Exploded 3 | . . 2 . . . . 3 . . . 2 1 Melee . | . . . . . . . . . . . . . Uniques/NPCs Destroyed . | . . . . . . . . . . . . . Combat | -11 -10 -9 -8 -8 -8 -8 -6 -6 -6 -6 -5 -5 -------- Run | Yrd Mat Mat Mat Sto Rec Scr Fac Low Low Dat Pro Fac Hostile Shots Fired 619 | . 13 67 27 27 2 . 206 32 12 . 17 216 Missed 217 | . 1 32 5 6 1 . 71 14 4 . 5 78 Hits 402 | . 12 35 22 21 1 . 135 18 8 . 12 138 Melee 1 | . . . . 1 . . . . . . . . Projectile 401 | . 12 35 22 20 1 . 135 18 8 . 12 138 Critical Strikes 9 | . . . 2 1 . . 1 . . . . 5 Part Disruptions 1 | . . . . . . . . . . . . 1 Damage Taken 5939 | . 134 465 329 339 14 . 1794 162 187 . 197 2318 Core 1263 | . 36 36 17 34 . . 119 . 14 . . 1007 Absorbed by Shields . | . . . . . . . . . . . . . Redirected to Shielding 13 | . 8 5 . . . . . . . . . . Regen/Repaired (Parts) 348 | . . . . . . 338 10 . . . . . Core Remaining (%) 90 | 100 85 91 . . . 90 . . . . 84 . Volleys Fired 257 | . 12 69 11 26 . . 86 5 11 . 14 23 Largest 4 | . 2 2 1 1 . . 4 4 4 . 3 2 Hottest 199 | . 60 113 68 68 . . 199 199 107 . 79 103 Shots Fired 441 | . 24 92 11 26 . . 198 16 30 . 16 28 Gun 322 | . 24 42 . . . . 187 16 29 . 7 17 Cannon 77 | . . 40 11 26 . . . . . . . . Launcher 40 | . . 10 . . . . 10 . . . 9 11 Special 2 | . . . . . . . 1 . 1 . . . Kinetic 239 | . 12 13 . . . . 158 13 29 . 7 7 Thermal 131 | . 12 40 11 26 . . 29 3 . . . 10 Explosive 17 | . . 10 . . . . 7 . . . . . Electromagnetic 52 | . . 29 . . . . 3 . . . 9 11 Robot Hit Streak 22 | . 7 8 4 7 . . 14 12 22 . 13 18 Robot Miss Streak 8 | . 1 8 2 2 . . 5 1 1 . . 1 Penetration Max 2 | . . . . . . . 2 . 1 . . . Secondary Targets 6 | . . . . . . . 5 1 . . . . Max Gunslinging Chain 1 | . . . . . . . 1 1 . . . . Shots Hit Robots 309 | . 15 58 9 22 6 . 135 15 25 . 8 16 Core Hits 208 | . 8 42 3 12 1 . 86 5 12 . 18 21 Critical Kills 4 | . . 1 . 1 . . 2 . . . . . Critical Parts Destroyed 8 | . . . . 1 2 . 3 1 1 . . . Critical Strikes 12 | . . 1 . 2 2 . 5 1 1 . . . Meltdown 1 | . . 1 . . . . . . . . . . Destroy 7 | . . . . . . . 5 1 1 . . . Smash 4 | . . . . 2 2 . . . . . . . Melee Attacks 46 | . . 3 3 8 6 . 16 . 2 . . 8 Impact 36 | . . 3 3 8 6 . 16 . . . . . Slashing 10 | . . . . . . . . . 2 . . 8 Piercing . | . . . . . . . . . . . . . Sneak Attacks 11 | . . 2 . 1 5 . 3 . . . . . Combat Hostiles 1 | . . . . . 1 . . . . . . . Follow-up Attacks . | . . . . . . . . . . . . . Damage Inflicted 11217 | . 183 2065 210 548 417 . 4821 322 465 . 905 1281 Guns 5261 | . 183 475 . . . . 3250 322 465 . 140 426 Cannons 1043 | . . 494 142 407 . . . . . . . . Explosions 3670 | . . 888 . . . . 1262 . . . 765 755 Melee 1178 | . . 208 68 141 417 . 309 . . . . 35 Ramming 65 | . . . . . . . . . . . . 65 Kinetic 3594 | . 73 105 . . . . 2467 219 465 . 140 125 Thermal 2840 | . 110 538 142 407 . . 783 103 . . 259 498 Explosive 2085 | . . 844 . . . . 1241 . . . . . Electromagnetic 1455 | . . 370 . . . . 21 . . . 506 558 Impact 1143 | . . 208 68 141 417 . 309 . . . . . Slashing 35 | . . . . . . . . . . . . 35 Piercing . | . . . . . . . . . . . . . Highest Corruption 4 | . . 2 . . . . 1 1 2 2 2 4 Average Corruption 1 | . . 2 . . . . 1 1 1 2 2 3 Corruption Purged . | . . . . . . . . . . . . . Corruption Blocked . | . . . . . . . . . . . . . Effects 33 | . . 13 . . . . . 3 10 1 2 4 Message Errors 4 | . . 2 . . . . . . 2 . . . Matter Fused 8 | . . 4 . . . . . . 2 . . 2 Heat Flow Errors 3 | . . 1 . . . . . 1 1 . . . Energy Discharges 7 | . . 2 . . . . . . 3 . . 2 Data Loss (minor) 6 | . . 2 . . . . . 1 2 1 . . Data Loss (major) 3 | . . . . . . . . 1 . . 2 . Weapon Failures 2 | . . 2 . . . . . . . . . . Overload Shots . | . . . . . . . . . . . . . Overflow Damage 407 | . . 32 5 103 227 . 25 . . . . 15 Projectiles . | . . . . . . . . . . . . . Explosions 15 | . . . . . . . . . . . . 15 Melee 392 | . . 32 5 103 227 . 25 . . . . . Knockbacks 1 | . . 1 . . . . . . . . . . Impact 1 | . . 1 . . . . . . . . . . Kinetic . | . . . . . . . . . . . . . Secondary . | . . . . . . . . . . . . . Self-Inflicted Damage 94 | . . 50 . . . . 13 . . . . 31 Shots 3 | . . 2 . . . . 1 . . . . . Rammed 9 | . . 1 . . . . . . . . . 8 Targets Rammed 9 | . . 1 . . . . . . . . . 8 Kicked . | . . . . . . . . . . . . . Crushed . | . . . . . . . . . . . . . Highest Temperature 396 | . 72 240 246 15 . . 396 245 247 . . 94 Average Temperature 75 | . 45 74 117 8 . . 77 120 112 . . 30 Received Heat Transfer 1092 | . 72 138 171 198 9 . 387 9 . . 54 54 Effects 1 | . . . . . . . 1 . . . . . Shutdowns 1 | . . . . . . . 1 . . . . . Siege Activations . | . . . . . . . . . . . . . Martial Activations . | . . . . . . . . . . . . . Shielding Activations . | . . . . . . . . . . . . . Robots Disrupted . | . . . . . . . . . . . . . Combat Hostiles . | . . . . . . . . . . . . . Robots Corrupted 5 | . . 1 1 1 2 . . . . . . . Combat Hostiles 2 | . . . 1 . 1 . . . . . . . Parts Fried 9 | . . 2 1 . 6 . . . . . . . Impact Corruptions 14 | . . 2 1 3 7 . 1 . . . . . Robots Melted 1 | . . 1 . . . . . . . . . . Combat Hostiles 1 | . . 1 . . . . . . . . . . Parts Melted 5 | . . 4 . 1 . . . . . . . . Heat Transferred 4159 | . 250 888 259 740 . . 1150 150 . . 202 520 Parts Sabotaged . | . . . . . . . . . . . . . Parts Stolen . | . . . . . . . . . . . . . Parts Stripped . | . . . . . . . . . . . . . Power Chain Reactions 3 | . . 1 . . . . . . . . 2 . Alert | -11 -10 -9 -8 -8 -8 -8 -6 -6 -6 -6 -5 -5 ------- Run | Yrd Mat Mat Mat Sto Rec Scr Fac Low Low Dat Pro Fac Maximum Alert Level 2 | . . 1 . . . . 2 . . . . 1 Low Security (%) 74 | 100 100 66 100 100 100 . 58 . . . . 67 Level 1 24 | . . 33 . . . . 38 . . . . 32 Level 2 . | . . . . . . . 2 . . . . . Level 3 . | . . . . . . . . . . . . . Level 4 . | . . . . . . . . . . . . . Level 5 . | . . . . . . . . . . . . . High Security . | . . . . . . . . . . . . . Max Security . | . . . . . . . . . . . . . Peak Influence 446 | . 90 348 131 74 40 . 446 . . . . 388 Initial 133 | . . 25 125 35 4 . . . . . . 133 Average 121 | . 39 136 103 40 8 . 175 . . . . 178 Influence Increases 3300 | . 100 707 101 176 145 . 947 60 38 . 378 648 Destroy 0b10 Robot/C 1580 | . 80 380 60 100 20 . 580 60 20 . 140 140 Destroy 0b10 Robot/NC 185 | . . 45 . 20 20 . 95 . . . . 5 Destroy Leader 344 | . 20 120 20 10 . . 134 . 10 . . 30 Allied During Kill 21 | . . . . . . . . . 8 . 13 . Successful Hack 80 | . . 28 6 15 15 . 12 . . . . 4 Select Force Hacks 90 | . . . . . 90 . . . . . . . Disable Machine 270 | . . 60 15 30 . . 15 . . . . 150 Destroy Structure 190 | . . 59 . 1 . . 96 . . . . 34 Partial Spotted 15 | . . . . . . . 15 . . . . . Lose Combat Pursuer 525 | . . 15 . . . . . . . . 225 285 Influence Decreases 2937 | . 40 470 312 251 156 . 505 380 160 . 165 498 Entered New Map 533 | . . 35 172 51 7 . . 164 24 . . 80 Time Decay 2099 | . 40 415 140 180 149 . 445 206 126 . 120 278 Lost Part 270 | . . 20 . 20 . . 60 10 10 . 10 140 Lost Ally 35 | . . . . . . . . . . . 35 . Squads Dispatched 19 | . 2 1 . . . . 12 . . . 1 3 Investigation 5 | . 2 . . . . . 3 . . . . . Extermination 4 | . . . . . . . 2 . . . . 2 Reinforcement 6 | . . 1 . . . . 5 . . . . . Assault 1 | . . . . . . . . . . . 1 . Garrison 3 | . . . . . . . 2 . . . . 1 Intercept . | . . . . . . . . . . . . . Searches Triggered . | . . . . . . . . . . . . . Construction Impeded 5 | . . 1 . . . . 4 . . . . . Haulers Reinforced . | . . . . . . . . . . . . . Active Scanning Responses . | . . . . . . . . . . . . . Cargo Convoy Interrupts 1 | . . . . . . . 1 . . . . . Stealth | -11 -10 -9 -8 -8 -8 -8 -6 -6 -6 -6 -5 -5 --------- Run | Yrd Mat Mat Mat Sto Rec Scr Fac Low Low Dat Pro Fac Distress Signals 10 | . 1 4 1 . . . 3 . . . . 1 Communications Jammed . | . . . . . . . . . . . . . Distress Signals . | . . . . . . . . . . . . . Times Spotted 142 | . 4 30 5 6 1 . 35 3 2 . 18 38 Peak Tracking Total 11 | . 3 5 2 4 . . 3 3 1 . 7 11 Tactical Retreats 14 | . . 1 . . . . . . . . 6 7 Traps | -11 -10 -9 -8 -8 -8 -8 -6 -6 -6 -6 -5 -5 ------- Run | Yrd Mat Mat Mat Sto Rec Scr Fac Low Low Dat Pro Fac Traps Triggered 6 | . 1 . . . . . 4 . 1 . . . Indirectly 4 | . . . . . . . 4 . . . . . Trap Hack Attempts . | . . . . . . . . . . . . . Triggered . | . . . . . . . . . . . . . Disarmed . | . . . . . . . . . . . . . Reprogrammed . | . . . . . . . . . . . . . Reused . | . . . . . . . . . . . . . Traps Extracted . | . . . . . . . . . . . . . Installed . | . . . . . . . . . . . . . Triggered . | . . . . . . . . . . . . . Machines | -11 -10 -9 -8 -8 -8 -8 -6 -6 -6 -6 -5 -5 ---------- Run | Yrd Mat Mat Mat Sto Rec Scr Fac Low Low Dat Pro Fac Machines Disabled 20 | . . 4 1 2 . . 1 . 1 . 1 10 Max in Single Turn 9 | . . 2 1 1 . . 1 . 1 . 1 9 Machines Repaired . | . . . . . . . . . . . . . Machines Dismantled . | . . . . . . . . . . . . . Machines Sabotaged . | . . . . . . . . . . . . . Overloaded Fab Kills . | . . . . . . . . . . . . . Hacking | -11 -10 -9 -8 -8 -8 -8 -6 -6 -6 -6 -5 -5 --------- Run | Yrd Mat Mat Mat Sto Rec Scr Fac Low Low Dat Pro Fac Machines Accessed 36 | . 1 5 2 3 8 4 6 . 1 4 . 2 Terminals 20 | . 1 5 2 3 5 . 2 . . . . 2 Fabricators 1 | . . . . . . . 1 . . . . . Repair Stations . | . . . . . . . . . . . . . Recycling Units 6 | . . . . . 3 . 3 . . . . . Scanalyzers . | . . . . . . . . . . . . . Garrison Access . | . . . . . . . . . . . . . Total Hacks 125 | . 2 11 12 6 23 28 10 . 1 29 . 3 Successful 85 | . . 6 5 3 7 28 5 . 1 29 . 1 Failed 40 | . 2 5 7 3 16 . 5 . . . . 2 Catastrophic 13 | . 1 1 2 1 5 . 2 . . . . 1 Database Lockouts . | . . . . . . . . . . . . . Manual 53 | . 2 7 12 4 20 . 8 . . . . . Terminals 54 | . 2 11 12 6 17 . 3 . . . . 3 Fabricators 2 | . . . . . . . 2 . . . . . Repair Stations . | . . . . . . . . . . . . . Recycling Units 11 | . . . . . 6 . 5 . . . . . Scanalyzers . | . . . . . . . . . . . . . Garrison Access . | . . . . . . . . . . . . . Terminal Hacks 71 | . . 4 2 3 2 28 1 . 1 29 . 1 Record 34 | . . . . . . 22 . . 1 11 . . Part Schematic 12 | . . . . . . . 1 . . 11 . . Robot Schematic 6 | . . . . . 2 . . . . 4 . . Robot Analysis 6 | . . . . . . 6 . . . . . . Prototype ID Bank 4 | . . 1 . . . . . . . 3 . . Open Door 2 | . . . . 2 . . . . . . . . Branch Access Points 2 | . . 1 1 . . . . . . . . . Terminal Index 3 | . . 1 1 1 . . . . . . . . Locate Traps 1 | . . 1 . . . . . . . . . . Zone Layout 1 | . . . . . . . . . . . . 1 Fabricator Hacks 2 | . . . . . . . 2 . . . . . Load Schematic 1 | . . . . . . . 1 . . . . . Build 1 | . . . . . . . 1 . . . . . Repair Station Hacks . | . . . . . . . . . . . . . Recycling Unit Hacks 2 | . . . . . 2 . . . . . . . Report Inventory 2 | . . . . . 2 . . . . . . . Scanalyzer . | . . . . . . . . . . . . . Garrison Access Hacks . | . . . . . . . . . . . . . Unauthorized Hacks 10 | . . 2 3 . 3 . 2 . . . . . Terminals 5 | . . 2 3 . . . . . . . . . Botnet 3 | . . 1 2 . . . . . . . . . Operators 2 | . . 1 1 . . . . . . . . . Fabricators . | . . . . . . . . . . . . . Repair Stations . | . . . . . . . . . . . . . Recycling Units 5 | . . . . . 3 . 2 . . . . . Tunnel 3 | . . . . . 3 . . . . . . . Fedlink 2 | . . . . . . . 2 . . . . . Scanalyzers . | . . . . . . . . . . . . . Garrison Access . | . . . . . . . . . . . . . Data Cores Recovered 1 | . . . . . . . 1 . . . . . Used 1 | . . . . . . . 1 . . . . . Hacking Detections 21 | . 1 5 2 3 6 . 3 . . . . 1 Full Trace Events 6 | . 1 . . . 4 . 1 . . . . . Feedback Events . | . . . . . . . . . . . . . Feedback Blocked . | . . . . . . . . . . . . . Robot Schematics Acquired 6 | . . . . . 2 . . . . 4 . . Robots Built 1 | . . . . . . . 1 . . . . . Authchips 1 | . . . . . . . 1 . . . . . Time 58 | . . . . . . . 58 . . . . . Total Robot Build Rating 3 | . . . . . . . 3 . . . . . Part Schematics Acquired 12 | . . . . . . . 1 . . 11 . . Parts Built . | . . . . . . . . . . . . . Authchips . | . . . . . . . . . . . . . Time . | . . . . . . . . . . . . . Total Part Build Rating . | . . . . . . . . . . . . . Parts Repaired . | . . . . . . . . . . . . . Time . | . . . . . . . . . . . . . Parts Recycled . | . . . . . . . . . . . . . Recycled Matter . | . . . . . . . . . . . . . Retrieved Matter . | . . . . . . . . . . . . . Retrieved Components . | . . . . . . . . . . . . . Parts Scanalyzed . | . . . . . . . . . . . . . Part Schematics Acquired . | . . . . . . . . . . . . . Parts Damaged . | . . . . . . . . . . . . . Bothacking | -11 -10 -9 -8 -8 -8 -8 -6 -6 -6 -6 -5 -5 ------------ Run | Yrd Mat Mat Mat Sto Rec Scr Fac Low Low Dat Pro Fac Used RIF Installer . | . . . . . . . . . . . . . Robots Hacked . | . . . . . . . . . . . . . Non-combat . | . . . . . . . . . . . . . Combat . | . . . . . . . . . . . . . Robot Hacks Applied . | . . . . . . . . . . . . . Relay Couplers Released . | . . . . . . . . . . . . . Fabnet Peak Effective % . | . . . . . . . . . . . . . Robots Rewired 4 | . . . . . . . . . 4 . . . Allies Hacked . | . . . . . . . . . . . . . Hacks Repelled . | . . . . . . . . . . . . . Allies | -11 -10 -9 -8 -8 -8 -8 -6 -6 -6 -6 -5 -5 -------- Run | Yrd Mat Mat Mat Sto Rec Scr Fac Low Low Dat Pro Fac Total Allies 5 | . . . . . . . 1 . 4 . . . Largest Group 4 | . . . . . . . 1 . 4 3 3 . Highest-Rated Group 117 | . . . . . . . 26 . 117 87 87 . Highest-Rated Ally 30 | . . . . . . . 26 . 30 29 29 . Total Orders 2 | . . . . . . . . . . 2 . . STAY 1 | . . . . . . . . . . 1 . . FOLLOW 1 | . . . . . . . . . . 1 . . Ally Attacks 23 | . . . . . . . . . . . 23 . Total Damage 302 | . . . . . . . . . . . 302 . Kills 2 | . . . . . . . . . . . 2 . Allies Corrupted . | . . . . . . . . . . . . . Allies Melted . | . . . . . . . . . . . . . Intel | -11 -10 -9 -8 -8 -8 -8 -6 -6 -6 -6 -5 -5 ------- Run | Yrd Mat Mat Mat Sto Rec Scr Fac Low Low Dat Pro Fac Active Infowar (turns) 5541 | . . 748 40 218 732 1973 415 176 167 111 349 612 Optics 612 | . . . . . . . . . . . . 612 Sensors 4461 | . . . . 218 732 1973 415 176 167 111 349 320 T.N.C. 788 | . . 748 40 . . . . . . . . . Robot Analysis Total 6 | . . . . . . 6 . . . . . . Derelict Logs Recovered 4 | . . . . . . . . 1 1 . 2 . Drone Launches . | . . . . . . . . . . . . . Drone Recoveries . | . . . . . . . . . . . . . Exploration | -11 -10 -9 -8 -8 -8 -8 -6 -6 -6 -6 -5 -5 ------------- Run | Yrd Mat Mat Mat Sto Rec Scr Fac Low Low Dat Pro Fac Turns Passed 9414 | 2 150 1327 293 379 732 2872 1466 435 686 111 349 612 Spaces Moved 6630 | 2 84 640 137 172 446 1958 1010 489 700 117 383 492 Core 48 | . . . . . . . . . . . . 48 Treads 2639 | . . 581 137 172 446 1293 10 . . . . . Legs 145 | 2 84 59 . . . . . . . . . . Wheels 3766 | . . . . . . 665 1000 489 700 117 383 412 Hover . | . . . . . . . . . . . . . Flight 32 | . . . . . . . . . . . . 32 Fastest Speed 45 | 120 120 120 160 160 160 70 100 80 80 80 80 45 Average Speed 115 | 120 120 156 160 160 160 133 102 83 80 80 80 75 Slowest Speed 245 | 120 120 160 160 160 160 160 245 100 80 80 80 90 Overloaded Moves . | . . . . . . . . . . . . . Propulsion Burnouts . | . . . . . . . . . . . . . Robots Hopped 1 | . . . . . . . . . . . . 1 Potential Cave-ins . | . . . . . . . . . . . . . Cave-ins Triggered . | . . . . . . . . . . . . . Exploration Rate (%) 45 | 3 21 45 19 32 92 89 27 61 67 70 53 18 Regions Visited 12 Branch Regions 7 Pre-discovered Areas 6 | . . . . . 3 . 1 . . 1 1 . Known Exits Taken 6 | . . . 1 1 1 1 1 . . . 1 . Unknown Exits Taken 6 | 1 1 1 . . . . . 1 1 1 . . Scrap Searched 13 | . . . . . . 7 . 2 4 . . . Spaces Dug 21 | . . . . 1 . . 12 . 2 . . 6 Terrain Destroyed 207 | . . 74 . 1 . . 103 . 2 . 7 20 Melee 20 | . . . . 1 . . 11 . 2 . . 6 Projectile 29 | . . . . . . . 29 . . . . . AOE 158 | . . 74 . . . . 63 . . . 7 14 Terrain Rammed . | . . . . . . . . . . . . . Walls Destroyed . | . . . . . . . . . . . . . Machines Disabled . | . . . . . . . . . . . . . Actions | -11 -10 -9 -8 -8 -8 -8 -6 -6 -6 -6 -5 -5 --------- Run | Yrd Mat Mat Mat Sto Rec Scr Fac Low Low Dat Pro Fac Total 7968 | 1 108 871 197 239 453 2232 1320 508 800 135 410 694 Wait 714 | . 11 71 33 13 . 228 156 . 55 11 7 129 Move 6616 | 1 83 639 136 171 445 1957 1009 488 699 116 382 490 Hop 1 | . . . . . . . . . . . . 1 Pick Up 76 | . . 25 4 5 . 16 11 3 1 3 . 8 Fast Attach 40 | . 1 14 3 4 . 6 7 3 1 . . 1 Attach 39 | . . 2 1 2 . 1 12 2 1 2 3 13 Detach 13 | . . 2 . . . 2 3 . . . 2 4 Swap 36 | . 1 14 . 2 1 . 9 2 2 . 2 3 Drop 93 | . . 31 6 8 1 22 11 5 . 3 . 6 Fire 257 | . 12 69 11 26 . . 86 5 11 . 14 23 Melee 46 | . . 3 3 8 6 . 16 . 2 . . 8 Ram 8 | . . . . . . . . . . . . 8 Kick . | . . . . . . . . . . . . . Crush 1 | . . 1 . . . . . . . . . . Escape Stasis . | . . . . . . . . . . . . . Rewire 28 | . . . . . . . . . 28 . . . Trap . | . . . . . . . . . . . . . Miscellaneous . | . . . . . . . . . . . . . Route ------- -11/Scrapyard -10/Materials -9/Materials (discovered 2 exits: *Mat / Min) -8/Materials (discovered 2 exits: *Sto x2) -8/Storage -8/Recycling (discovered 2 exits: *Fac / *Scr) -8/Scraptown -6/Factory (discovered 3 exits: *Fac / *Low x2) -6/Lower Caves -6/Lower Caves -6/Data Miner -5/Proximity Caves -5/Factory (discovered 1 exit: Upp) History --------- Turn | Location | Event 1 | -11/Scrapyard | Discovered new exit (range 1) 3 | -11/Scrapyard | Entered Materials 111 | -10/Materials | Discovered new exit (range 16) 153 | -10/Materials | Entered another Materials area 153 | -9/Materials | Evolved 2 slots: Propulsion x1, Utility x1 311 | -9/Materials | Build established: Mutant 811 | -9/Materials | Discovered new exit (range 16) 1349 | -9/Materials | Identified exit to Mines 1480 | -9/Materials | Entered another Materials area 1480 | -8/Materials | Evolved 2 slots: Propulsion x1, Utility x1 1698 | -8/Materials | Identified exit to Storage 1773 | -8/Materials | Entered Storage 2055 | -8/Storage | Used back door to open Recycling access 2055 | -8/Storage | Discovered new exit (range 5) 2109 | -8/Storage | Identified exit to Recycling 2152 | -8/Storage | Entered Recycling 2419 | -8/Recycling | Discovered new exit (range 15) 2842 | -8/Recycling | Scanned before Scraplab entrance 2865 | -8/Recycling | Entered Scraplab 2879 | -8/Recycling | Discovered new exit (range 3) 2881 | -8/Recycling | Identified exit to Scraptown 2884 | -8/Recycling | Entered Scraptown 3387 | -8/Scraptown | Visited Cyclists 3441 | -8/Scraptown | Visited UFD Registry 3441 | -8/Scraptown | Registered with UFD as "Slugslasher" 3454 | -8/Scraptown | Visited CR-KLE's Repair Center 3481 | -8/Scraptown | CR-KLE repaired 6 parts 3518 | -8/Scraptown | Visited Cave Peace 3579 | -8/Scraptown | Visited Shadow of the Wyrm 3604 | -8/Scraptown | Visited Symbiants 3660 | -8/Scraptown | Visited Bundlers 3769 | -8/Scraptown | Entered Cyclist Reading Room 3809 | -8/Scraptown | Visited Assassins FH 4153 | -8/Scraptown | Visited Curators Association 4177 | -8/Scraptown | Visited Chapter 10 4228 | -8/Scraptown | Visited Research Penetration Think Tank 4414 | -8/Scraptown | Visited DA-N13 Charitable Foundation 4428 | -8/Scraptown | Found DCF Scrap (30 items) 4488 | -8/Scraptown | Visited Scrap Suit Storage 4518 | -8/Scraptown | Visited Junk Repository 4560 | -8/Scraptown | Visited Scrapoid Research Area 4619 | -8/Scraptown | Visited Analyses Database 4684 | -8/Scraptown | Visited Modified Component R&D 4858 | -8/Scraptown | Found Scrap Suit 4861 | -8/Scraptown | Found Scrap Suit 5259 | -8/Scraptown | Build established: Scrapper 5716 | -8/Scraptown | Met Optimus 5716 | -8/Scraptown | Accepted into 0bPrime 5754 | -8/Scraptown | Discovered new exit (range 3) 5755 | -8/Scraptown | Identified exit to Factory 5756 | -8/Scraptown | Entered Factory 5756 | -6/Factory | Evolved 4 slots: Utility x2, Weapon x2 5796 | -6/Factory | Loaded intel: 8 recycling unit locations 5947 | -6/Factory | Discovered new exit (range 11) 5997 | -6/Factory | Identified exit to Factory 6055 | -6/Factory | Learned location of Protoforge (-3) 6091 | -6/Factory | Discovered new exit (range 9) 6099 | -6/Factory | Identified exit to Lower Caves 6463 | -6/Factory | Garrison activated, responded to threat 6740 | -6/Factory | Fabricated O-24 Administrator (x1) 6790 | -6/Factory | Cargo convoy interrupted 7019 | -6/Factory | Discovered exit to Lower Caves (range 16) 7130 | -6/Factory | Build established: Scavenger-Scrapper 7183 | -6/Factory | Garrison activated, responded to threat 7222 | -6/Factory | Entered Lower Caves 7264 | -6/Lower Caves | Attracted the attention of an 0b10 checkpoint 7416 | -6/Lower Caves | Learned Factory stockpile data 7500 | -6/Lower Caves | Discovered new exit (range 11) 7657 | -6/Lower Caves | Entered another Lower Caves area 7674 | -6/Lower Caves | Attacked by a delusional Derelict stockpiling Unaware 7900 | -6/Lower Caves | Encountered a Warlord checkpoint 8099 | -6/Lower Caves | Discovered new exit (range 8) 8247 | -6/Lower Caves | Entered a destroyed Warlord outpost 8343 | -6/Lower Caves | Entered Data Miner 8343 | -6/Data Miner | Accompanied by 3 allies 8345 | -6/Data Miner | Discovered new exit (range 6) 8360 | -6/Data Miner | Met Data Miner 8391 | -6/Data Miner | Learned location of Section 7 (-3) 8391 | -6/Data Miner | Acquired the access code to Warlord's prototype stash 8404 | -6/Data Miner | Received God Mode back door access code from Data Miner 8454 | -6/Data Miner | Entered Proximity Caves 8454 | -5/Proximity Caves | Accompanied by 3 allies 8560 | -5/Proximity Caves | Attracted the attention of an 0b10 outpost 8622 | -5/Proximity Caves | Lost 3 allies 8682 | -5/Proximity Caves | Spotted B-75 Beast 8684 | -5/Proximity Caves | Learned 12 Factory zone layouts 8718 | -5/Proximity Caves | Discovered exit to Factory (range 15) 8729 | -5/Proximity Caves | Learned location of Armory (-3) 8803 | -5/Proximity Caves | Entered Factory 8803 | -5/Factory | Evolved 2 slots: Utility x2 8804 | -5/Factory | Identified exit to Upper Caves 9146 | -5/Factory | Garrison activated, responded to threat 9375 | -5/Factory | Core integrity fell below 50% 9402 | -5/Factory | Core integrity fell below 20% 9415 | -5/Factory | Destroyed by Y-64 Sentinel with Wave Gun Last Messages --------------- 09374_ Penetrated by Slug. 09374_ Authchip [R/Combat] destroyed. 09382_ Acquired Field Propulsion Drive. 09387_ Authchip [R/Combat] destroyed. 09387_ Penetrated by Slug. 09395_ W-25 Informer sends out distress signal. 09397_ Field Propulsion Drive destroyed. 09398_ Slug penetrates Y-64 Sentinel. 09401_ Penetrated by Slug. 09401_ Imp. Signal Interpreter destroyed. 09401_ Penetrated by Slug. 09402_ System corrupted: Energy discharge (-29). 09408_ Connecting with Terminal... >>Layout(Zone) Retrieving Zone 3A layout... Downloaded map data. 09409_ Slammed into S-27 Virus. 09413_ U-05 Engineer builds a Door. 09413_ Slammed into S-27 Virus. 09414_ Slammed into Y-64 Sentinel. Map ----- +----------------------------------------------------+ | #??????????????????????# ???????????? | | ##??????????????????????# ???????????? | | "" #???????????????????????# ???????????? | | "" #???????????????????????#! ???????????? | | """ #???????????????????????# ???????????? | | ??????? #???????????????????????#?######## # | | ???????! #???????????????????????# #??????# # | | ??????? #???????????????????#####?######## # | | ??????? #???????????????????# # # | | ??????? #???????????????????# """ """ # # | | ??????? #????????########???# """ """ # # | | ?????############??# #???# """ """ # # | | ???? + #??# """ #???# # | | ???? # #??# "T" !#???# """ """ + | | ???? # #??# #???# """ """ # | | ??? + #??# #???# """ """ # | | ?? # #??# #???# # | | ?? # #??######+###?# ####### | | " "?" # #?????# #?# #??# | | " """ # #?????# s #?# #??# | | " """ # #?????# " #?##+###########??# | | ##############?# s #??# #????????????# | | " """ # #?# s #??# #????????????# | | " """ # """ #?###s###??# #????????????# | | " """ # "G" #???#Y#? ??# ###########??# | | # " " """ #?###@###??# + """ #??# | | " """ # """ #?# h #### # """ #??# | | " """ # """ ### # """ #??# | | " """ + + u Y + #??# | | #????????????### w #? #??# | | #??????????????# ####### #????????????? | | ##"## #??????????????## ##????????????????????? | | ### #???????????????# #?????????????????????? | | ### #???????????????# #?????????????????????? | | ### #???????????????# #?????????????????????? | | #?# #??????????????## ##?!??????????????????? | | #?#=%##????#####????# #????????????????????? | | #?# ###### ######[ #????????????????????? | | #?# % " = #????????????????????? | | #?# ### ## ### #????????????????????? | | #?# ####+###+### u #????????????????????? | | #?# # ####+###????????????????????? | | #?# # #??# ??????????????????????? | | #?# # #??# ?????????????????????? | | ##### # #??# ?????????????????????? | | ####+#########* ????????????????????? | | # # ???????????????????? | | + """ # ""???????????????????? | | ############ # """ # """??????????????????? | | ###????????# # """ # """??????????????????? | +----------------------------------------------------+ Best States ------------- Heat Dissipation 59 Energy Generation 16 Energy Capacity 290 Matter Stores 300 Matter Capacity 300 Sight Range 22 Robot Scan Range 15 Terrain Scan Density 10 Armor Coverage 600 Core Shielding 20 Evasion (%) 61 Targeting Accuracy 28 Recoil Reduction 4 Offensive Hacking 22 Defensive Hacking 10 Authchip Count 6 Item Schematics ----------------- Adv. Hacking Suite | -6/Factory | Hacked Gamma Bomb Array | -6/Data Miner | Free Adv. Corruption Screen | -6/Data Miner | Free Graphene Brace | -6/Data Miner | Free Hardcell Cannon | -6/Data Miner | Free Adv. Hardlight Generator | -6/Data Miner | Free Imp. Heavy Treads | -6/Data Miner | Free Plasma Sword | -6/Data Miner | Free Imp. Energy Well | -6/Data Miner | Free Enh. Armored Leg | -6/Data Miner | Free Lgt. Regenerative Plating | -6/Data Miner | Free Combat Drone Bay | -6/Data Miner | Free Robot Schematics ------------------ O-24 Administrator | -8/Recycling | Hacked L-31 Rogue | -8/Recycling | Hacked A-15 Conveyor | -6/Data Miner | Free H-66 Slayer | -6/Data Miner | Free X-67 Chaingunner | -6/Data Miner | Free E-15 Imp | -6/Data Miner | Free Fabricated ------------ O-24 Administrator | x1 | -6/Factory | Authchip Repaired ---------- Nothing Alien Tech Used ----------------- None Achievements -------------- None Challenges ------------ None Game ------ Seed PropulsionGreatExtrapolator Manual? 0 Play Time 01:28:44 Cumulative 507.4 hours Start 2025.06.01 @ 01:36:55 End 2025.06.01 @ 04:30:46 Sessions 3 Manual Loads 0 Difficulty Rogue Special Mode None Game No. 555 Rogue 555 Adventurer 0 Explorer 0 Win Type - Total 14 Types 9/0/4/1/0/0/0/0/0/0 Lore% 79 Gallery% 80 Achievement% 82 Wizard Run 0 Options --------- Layout 0 ASCII 0 Keyboard 0 Movement Numpad Keybinds 0 Fullscreen 1 Font 18/SmallcapsGlow Map View 76x50 Zoom Use 0% Tactical HUD 1 Map Filters NONE Filters NONE Steam 1 RUN: cb34992b-877e-41ba-8456-5f899d128ddd